Workbook

Sheet Raw Data
A1: 59
A2: 116 | B2: 363 | C2: 418 | D2: 453 | E2: 363 | G2: BM1 | H2: =(A2-$B2)/$B2 -> -0.6804407713 | I2: =(B2-$B2)/$B2 -> 0 | J2: =(C2-$B2)/$B2 -> 0.1515151515 | K2: 0.2479338843 | L2: 0
A3: 882 | B3: 601 | C3: 679 | D3: 758 | E3: 899 | G3: BM2 | H3: 0.4675540765 | I3: =(B3-$B3)/$B3 -> 0 | J3: 0.1297836938 | K3: 0.2612312812 | L3: 0.4958402662
A4: 315 | B4: 171 | C4: 349 | D4: 334 | E4: 316 | G4: BM3 | H4: 0.8421052632 | I4: 0 | J4: 1.040935673 | K4: 0.9532163743 | L4: 0.8479532164
G5: BM4
A6: 397 | B6: 413 | C6: 398 | D6: 330 | E6: 239 | G6: BM5 | H6: -0.0387409201 | I6: 0 | J6: -0.03631961259 | K6: -0.200968523 | L6: -0.4213075061
A7: 677 | B7: 674 | C7: 731 | D7: 868 | E7: 808 | G7: BM6 | H7: 0.004451038576 | I7: 0 | J7: 0.08456973294 | K7: 0.2878338279 | L7: 0.1988130564
A8: 236 | B8: 119 | C8: 252 | D8: 130 | E8: 190 | G8: BM7 | H8: 0.9831932773 | I8: 0 | J8: 1.117647059 | K8: 0.09243697479 | L8: 0.5966386555
A9: 1344 | B9: 1321 | C9: 1140 | D9: 998 | E9: 1088 | G9: BM8 | H9: 0.01741105223 | I9: 0 | J9: -0.1370174111 | K9: -0.2445117335 | L9: -0.1763815291
A10: 88 | B10: 590 | C10: 335 | D10: 283 | E10: 327 | G10: BM9 | H10: -0.8508474576 | I10: 0 | J10: -0.4322033898 | K10: -0.5203389831 | L10: -0.4457627119
A11: 445 | B11: 249 | C11: 199 | D11: 347 | E11: 267 | G11: BM10 | H11: 0.7871485944 | I11: 0 | J11: -0.2008032129 | K11: 0.3935742972 | L11: 0.07228915663
A12: 61
A13: 728 | B13: 778 | C13: 656 | D13: 851 | E13: 805 | G13: BM1 | H13: =(A13-$B13)/$B13 -> -0.06426735219 | I13: =(B13-$B13)/$B13 -> 0 | J13: =(C13-$B13)/$B13 -> -0.1568123393 | K13: =(D13-$B13)/$B13 -> 0.09383033419 | L13: =(E13-$B13)/$B13 -> 0.03470437018
A14: 368 | B14: 500 | C14: 562 | D14: 446 | E14: 310 | G14: BM2 | H14: -0.264 | I14: =(B14-$B14)/$B14 -> 0 | J14: 0.124 | K14: -0.108 | L14: -0.38
A15: 389 | B15: 242 | C15: 469 | D15: 560 | E15: 663 | G15: BM3 | H15: 0.6074380165 | I15: 0 | J15: 0.9380165289 | K15: 1.314049587 | L15: 1.739669421
G16: BM4
A17: 567 | B17: 367 | C17: 462 | D17: 276 | E17: 137 | G17: BM5 | H17: 0.5449591281 | I17: 0 | J17: 0.2588555858 | K17: -0.2479564033 | L17: -0.6267029973
A18: 584 | B18: 676 | C18: 510 | D18: 459 | E18: 485 | G18: BM6 | H18: -0.1360946746 | I18: 0 | J18: -0.2455621302 | K18: -0.3210059172 | L18: -0.2825443787
A19: 392 | B19: 288 | C19: 474 | D19: 539 | E19: 602 | G19: BM7 | H19: 0.3611111111 | I19: 0 | J19: 0.6458333333 | K19: 0.8715277778 | L19: 1.090277778
A20: 784 | B20: 387 | C20: 627 | D20: 374 | E20: 317 | G20: BM8 | H20: 1.025839793 | I20: 0 | J20: 0.6201550388 | K20: -0.03359173127 | L20: -0.180878553
A21: 384 | B21: 875 | C21: 480 | D21: 499 | E21: 456 | G21: BM9 | H21: -0.5611428571 | I21: 0 | J21: -0.4514285714 | K21: -0.4297142857 | L21: -0.4788571429
A22: 304 | B22: 388 | C22: 261 | D22: 497 | E22: 722 | G22: BM10 | H22: -0.2164948454 | I22: 0 | J22: -0.3273195876 | K22: 0.2809278351 | L22: 0.8608247423
A23: 62
A24: 120 | B24: 101 | C24: 335 | D24: 370 | E24: 287 | G24: BM1 | H24: =(A24-$B24)/$B24 -> 0.1881188119 | I24: =(B24-$B24)/$B24 -> 0 | J24: =(C24-$B24)/$B24 -> 2.316831683 | K24: =(D24-$B24)/$B24 -> 2.663366337 | L24: =(E24-$B24)/$B24 -> 1.841584158
A25: 286 | B25: 1821 | C25: 974 | D25: 833 | E25: 642 | G25: BM2 | H25: -0.8429434377 | I25: =(B25-$B25)/$B25 -> 0 | J25: -0.46512905 | K25: -0.5425590335 | L25: -0.647446458
A26: 158 | B26: 394 | C26: 238 | D26: 551 | E26: 441 | G26: BM3 | H26: -0.5989847716 | I26: 0 | J26: -0.3959390863 | K26: 0.3984771574 | L26: 0.1192893401
G27: BM4
A28: 1777 | B28: 293 | C28: 635 | D28: 710 | E28: 710 | G28: BM5 | H28: 5.064846416 | I28: 0 | J28: 1.167235495 | K28: 1.423208191 | L28: 1.423208191
A29: 485 | B29: 201 | C29: 357 | D29: 407 | E29: 490 | G29: BM6 | H29: 1.412935323 | I29: 0 | J29: 0.776119403 | K29: 1.024875622 | L29: 1.437810945
A30: 217 | B30: 80 | C30: 202 | D30: 259 | E30: 113 | G30: BM7 | H30: 1.7125 | I30: 0 | J30: 1.525 | K30: 2.2375 | L30: 0.4125
A31: 838 | B31: 1209 | C31: 1151 | D31: 912 | E31: 1231 | G31: BM8 | H31: -0.3068651778 | I31: 0 | J31: -0.04797353184 | K31: -0.2456575682 | L31: 0.01819685691
A32: 169 | B32: 382 | C32: 523 | D32: 296 | E32: 336 | G32: BM9 | H32: -0.557591623 | I32: 0 | J32: 0.3691099476 | K32: -0.2251308901 | L32: -0.1204188482
A33: 450 | B33: 20 | C33: 86 | D33: 163 | E33: 247 | G33: BM10 | H33: 21.5 | I33: 0 | J33: 3.3 | K33: 7.15 | L33: 11.35
A34: 63
A35: 593 | B35: 99 | C35: 126 | D35: 272 | E35: 251 | G35: BM1 | H35: =(A35-$B35)/$B35 -> 4.98989899 | I35: =(B35-$B35)/$B35 -> 0 | J35: =(C35-$B35)/$B35 -> 0.2727272727 | K35: =(D35-$B35)/$B35 -> 1.747474747 | L35: =(E35-$B35)/$B35 -> 1.535353535
A36: 110 | B36: 20 | C36: 633 | D36: 354 | E36: 616 | G36: BM2 | H36: 4.5 | I36: =(B36-$B36)/$B36 -> 0 | J36: 30.65 | K36: 16.7 | L36: 29.8
A37: 575 | B37: 141 | C37: 83 | D37: 488 | E37: 349 | G37: BM3 | H37: 3.078014184 | I37: 0 | J37: -0.4113475177 | K37: 2.460992908 | L37: 1.475177305
A38: 0 | B38: 0 | C38: 0 | D38: 0 | E38: 0 | G38: BM4
A39: 284 | B39: 149 | C39: 181 | D39: 286 | E39: 164 | G39: BM5 | H39: 0.9060402685 | I39: 0 | J39: 0.2147651007 | K39: 0.9194630872 | L39: 0.1006711409
A40: 914 | B40: 442 | C40: 901 | D40: 678 | E40: 806 | G40: BM6 | H40: 1.067873303 | I40: 0 | J40: 1.038461538 | K40: 0.5339366516 | L40: 0.8235294118
A41: 186 | B41: 9 | C41: 35 | D41: 329 | E41: 115 | G41: BM7 | H41: 19.66666667 | I41: 0 | J41: 2.888888889 | K41: 35.55555556 | L41: 11.77777778
A42: 768 | B42: 1507 | C42: 1660 | D42: 791 | E42: 1205 | G42: BM8 | H42: -0.4903782349 | I42: 0 | J42: 0.101526211 | K42: -0.4751161248 | L42: -0.200398142
A43: 797 | B43: 2133 | C43: 858 | D43: 1138 | E43: 915 | G43: BM9 | H43: -0.6263478669 | I43: 0 | J43: -0.5977496484 | K43: -0.4664791374 | L43: -0.5710267229
A44: 273 | B44: 9 | C44: 24 | D44: 165 | E44: 76 | G44: BM10 | H44: 29.33333333 | I44: 0 | J44: 1.666666667 | K44: 17.33333333 | L44: 7.444444444
A45: 64
A46: 231 | B46: 173 | C46: 395 | D46: 486 | E46: 470 | G46: BM1 | H46: =(A46-$B46)/$B46 -> 0.3352601156 | I46: =(B46-$B46)/$B46 -> 0 | J46: =(C46-$B46)/$B46 -> 1.283236994 | K46: =(D46-$B46)/$B46 -> 1.809248555 | L46: =(E46-$B46)/$B46 -> 1.716763006
A47: 446 | B47: 109 | C47: 269 | D47: 191 | E47: 241 | G47: BM2 | H47: 3.091743119 | I47: =(B47-$B47)/$B47 -> 0 | J47: 1.467889908 | K47: 0.752293578 | L47: 1.211009174
A48: 270 | B48: 83 | C48: 118 | D48: 403 | E48: 285 | G48: BM3 | H48: 2.253012048 | I48: 0 | J48: 0.421686747 | K48: 3.855421687 | L48: 2.43373494
G49: BM4
A50: 758 | B50: 585 | C50: 870 | D50: 656 | E50: 542 | G50: BM5 | H50: 0.2957264957 | I50: 0 | J50: 0.4871794872 | K50: 0.1213675214 | L50: -0.0735042735
A51: 651 | B51: 417 | C51: 477 | D51: 753 | E51: 678 | G51: BM6 | H51: 0.5611510791 | I51: 0 | J51: 0.1438848921 | K51: 0.8057553957 | L51: 0.6258992806
A52: 360 | B52: 33 | C52: 66 | D52: 162 | E52: 286 | G52: BM7 | H52: 9.909090909 | I52: 0 | J52: 1 | K52: 3.909090909 | L52: 7.666666667
A53: 378 | B53: 658 | C53: 564 | D53: 427 | E53: 519 | G53: BM8 | H53: -0.4255319149 | I53: 0 | J53: -0.1428571429 | K53: -0.3510638298 | L53: -0.2112462006
A54: 961 | B54: 2376 | C54: 1597 | D54: 1253 | E54: 1299 | G54: BM9 | H54: -0.5955387205 | I54: 0 | J54: -0.3278619529 | K54: -0.4726430976 | L54: -0.4532828283
A55: 445 | B55: 67 | C55: 145 | D55: 170 | E55: 177 | G55: BM10 | H55: 5.641791045 | I55: 0 | J55: 1.164179104 | K55: 1.537313433 | L55: 1.641791045
A56: 162
A57: 1361 | B57: 161 | C57: 754 | D57: 208 | E57: 184 | G57: BM1 | H57: =(A57-$B57)/$B57 -> 7.453416149 | I57: =(B57-$B57)/$B57 -> 0 | J57: =(C57-$B57)/$B57 -> 3.683229814 | K57: =(D57-$B57)/$B57 -> 0.2919254658 | L57: =(E57-$B57)/$B57 -> 0.1428571429
A58: 97 | B58: 9 | C58: 281 | D58: 269 | E58: 369 | G58: BM2 | H58: 9.777777778 | I58: 0 | J58: 30.22222222 | K58: 28.88888889 | L58: 40
A59: 589 | B59: 9 | C59: 214 | D59: 31 | E59: 80 | G59: BM3 | H59: 64.44444444 | I59: 0 | J59: 22.77777778 | K59: 2.444444444 | L59: 7.888888889
G60: BM4
A61: 253 | B61: 211 | C61: 933 | D61: 757 | E61: 835 | G61: BM5 | H61: 0.1990521327 | I61: 0 | J61: 3.421800948 | K61: 2.587677725 | L61: 2.957345972
A62: 754 | B62: 985 | C62: 453 | D62: 680 | E62: 606 | G62: BM6 | H62: -0.2345177665 | I62: 0 | J62: -0.5401015228 | K62: -0.3096446701 | L62: -0.3847715736
A63: 267 | B63: 0 | C63: 348 | D63: 26 | E63: 9 | G63: BM7
A64: 384 | B64: 834 | C64: 499 | D64: 1535 | E64: 1396 | G64: BM8 | H64: -0.5395683453 | I64: 0 | J64: -0.4016786571 | K64: 0.8405275779 | L64: 0.6738609113
A65: 522 | B65: 2300 | C65: 406 | D65: 980 | E65: 1005 | G65: BM9 | H65: -0.7730434783 | I65: 0 | J65: -0.8234782609 | K65: -0.5739130435 | L65: -0.5630434783
A66: 273 | B66: 0 | C66: 613 | D66: 15 | E66: 15 | G66: BM10
A67: 212
A68: 427 | B68: 179 | C68: 287 | D68: 350 | E68: 408 | G68: BM1 | H68: =(A68-$B68)/$B68 -> 1.38547486 | I68: =(B68-$B68)/$B68 -> 0 | J68: =(C68-$B68)/$B68 -> 0.6033519553 | K68: =(D68-$B68)/$B68 -> 0.9553072626 | L68: =(E68-$B68)/$B68 -> 1.279329609
A69: 440 | B69: 15 | C69: 89 | D69: 81 | E69: 94 | G69: BM2 | H69: 28.33333333 | I69: =(B69-$B69)/$B69 -> 0 | J69: 4.933333333 | K69: 4.4 | L69: 5.266666667
A70: 431 | B70: 200 | C70: 191 | D70: 693 | E70: 459 | G70: BM3 | H70: 1.155 | I70: 0 | J70: -0.045 | K70: 2.465 | L70: 1.295
G71: BM4
A72: 406 | B72: 1036 | C72: 888 | D72: 726 | E72: 1032 | G72: BM5 | H72: -0.6081081081 | I72: 0 | J72: -0.1428571429 | K72: -0.2992277992 | L72: -0.003861003861
A73: 547 | B73: 533 | C73: 654 | D73: 745 | E73: 598 | G73: BM6 | H73: 0.02626641651 | I73: 0 | J73: 0.2270168856 | K73: 0.3977485929 | L73: 0.1219512195
A74: 166 | B74: 98 | C74: 21 | D74: 160 | E74: 78 | G74: BM7 | H74: 0.693877551 | I74: 0 | J74: -0.7857142857 | K74: 0.6326530612 | L74: -0.2040816327
A75: 589 | B75: 524 | C75: 651 | D75: 382 | E75: 439 | G75: BM8 | H75: 0.1240458015 | I75: 0 | J75: 0.2423664122 | K75: -0.2709923664 | L75: -0.1622137405
A76: 1014 | B76: 1864 | C76: 1674 | D76: 1308 | E76: 1291 | G76: BM9 | H76: -0.4560085837 | I76: 0 | J76: -0.1019313305 | K76: -0.2982832618 | L76: -0.3074034335
A77: 480 | B77: 52 | C77: 46 | D77: 56 | E77: 98 | G77: BM10 | H77: 8.230769231 | I77: 0 | J77: -0.1153846154 | K77: 0.07692307692 | L77: 0.8846153846
A78: 213
A79: 242 | B79: 198 | C79: 116 | D79: 266 | E79: 620 | G79: BM1 | H79: =(A79-$B79)/$B79 -> 0.2222222222 | I79: =(B79-$B79)/$B79 -> 0 | J79: =(C79-$B79)/$B79 -> -0.4141414141 | K79: =(D79-$B79)/$B79 -> 0.3434343434 | L79: =(E79-$B79)/$B79 -> 2.131313131
A80: 483 | B80: 511 | C80: 968 | D80: 1068 | E80: 868 | G80: BM2 | H80: -0.05479452055 | I80: =(B80-$B80)/$B80 -> 0 | J80: 0.8943248532 | K80: 1.090019569 | L80: 0.698630137
A81: 397 | B81: 129 | C81: 17 | D81: 258 | E81: 234 | G81: BM3 | H81: 2.07751938 | I81: 0 | J81: -0.8682170543 | K81: 1 | L81: 0.8139534884
G82: BM4
A83: 203 | B83: 557 | C83: 542 | D83: 257 | E83: 217 | G83: BM5 | H83: -0.6355475763 | I83: 0 | J83: -0.02692998205 | K83: -0.5385996409 | L83: -0.6104129264
A84: 493 | B84: 504 | C84: 317 | D84: 763 | E84: 626 | G84: BM6 | H84: -0.02182539683 | I84: 0 | J84: -0.371031746 | K84: 0.5138888889 | L84: 0.2420634921
A85: 401 | B85: 130 | C85: 0 | D85: 60 | E85: 98 | G85: BM7 | H85: 2.084615385 | I85: 0 | J85: -1 | K85: -0.5384615385 | L85: -0.2461538462
A86: 643 | B86: 862 | C86: 452 | D86: 367 | E86: 432 | G86: BM8 | H86: -0.2540603248 | I86: 0 | J86: -0.475638051 | K86: -0.5742459397 | L86: -0.4988399072
A87: 682 | B87: 1492 | C87: 2089 | D87: 1456 | E87: 1360 | G87: BM9 | H87: -0.5428954424 | I87: 0 | J87: 0.4001340483 | K87: -0.02412868633 | L87: -0.08847184987
A88: 956 | B88: 118 | C88: 0 | D88: 9 | E88: 42 | G88: BM10 | H88: 7.101694915 | I88: 0 | J88: -1 | K88: -0.9237288136 | L88: -0.6440677966
A89: 221
A90: 401 | B90: 482 | C90: 510 | D90: 629 | E90: 636 | G90: BM1
A91: 737 | B91: 640 | C91: 594 | D91: 328 | E91: 524 | G91: BM2 | H91: =(A91-$B91)/$B91 -> 0.1515625 | I91: =(B91-$B91)/$B91 -> 0 | J91: =(C91-$B91)/$B91 -> -0.071875 | K91: =(D91-$B91)/$B91 -> -0.4875 | L91: =(E91-$B91)/$B91 -> -0.18125
A92: 168 | B92: 231 | C92: 367 | D92: 422 | E92: 424 | G92: BM3 | H92: -0.2727272727 | I92: 0 | J92: 0.5887445887 | K92: 0.8268398268 | L92: 0.8354978355
G93: BM4
A94: 337 | B94: 479 | C94: 480 | D94: 444 | E94: 472 | G94: BM5 | H94: -0.2964509395 | I94: 0 | J94: 0.002087682672 | K94: -0.07306889353 | L94: -0.01461377871
A95: 727 | B95: 725 | C95: 1060 | D95: 717 | E95: 928 | G95: BM6 | H95: 0.00275862069 | I95: 0 | J95: 0.4620689655 | K95: -0.01103448276 | L95: 0.28
A96: 226 | B96: 214 | C96: 162 | D96: 454 | E96: 250 | G96: BM7 | H96: 0.05607476636 | I96: 0 | J96: -0.2429906542 | K96: 1.121495327 | L96: 0.1682242991
A97: 780 | B97: 766 | C97: 357 | D97: 586 | E97: 526 | G97: BM8 | H97: 0.0182767624 | I97: 0 | J97: -0.5339425587 | K97: -0.2349869452 | L97: -0.3133159269
A98: 488 | B98: 698 | C98: 854 | D98: 420 | E98: 517 | G98: BM9 | H98: -0.3008595989 | I98: 0 | J98: 0.223495702 | K98: -0.3982808023 | L98: -0.2593123209
A99: 636 | B99: 266 | C99: 117 | D99: 501 | E99: 220 | G99: BM10 | H99: 1.390977444 | I99: 0 | J99: -0.5601503759 | K99: 0.8834586466 | L99: -0.1729323308
A100: 294
A101: 485 | B101: 361 | C101: 483 | D101: 440 | E101: 613 | G101: BM1 | H101: =(A101-$B101)/$B101 -> 0.3434903047 | I101: =(B101-$B101)/$B101 -> 0 | J101: =(C101-$B101)/$B101 -> 0.3379501385 | K101: =(D101-$B101)/$B101 -> 0.2188365651 | L101: =(E101-$B101)/$B101 -> 0.6980609418
G102: BM2
A103: 324 | B103: 322 | C103: 323 | D103: 293 | E103: 522 | G103: BM3 | H103: 0.006211180124 | I103: 0 | J103: 0.003105590062 | K103: -0.0900621118 | L103: 0.6211180124
G104: BM4
A105: 434 | B105: 620 | C105: 629 | D105: 483 | E105: 528 | G105: BM5 | H105: -0.3 | I105: 0 | J105: 0.01451612903 | K105: -0.2209677419 | L105: -0.1483870968
A106: 1047 | B106: 661 | C106: 788 | D106: 847 | E106: 817 | G106: BM6 | H106: 0.5839636914 | I106: 0 | J106: 0.1921331316 | K106: 0.2813918306 | L106: 0.2360060514
A107: 335 | B107: 410 | C107: 208 | D107: 355 | E107: 396 | G107: BM7 | H107: -0.1829268293 | I107: 0 | J107: -0.4926829268 | K107: -0.1341463415 | L107: -0.03414634146
A108: 532 | B108: 725 | C108: 583 | D108: 589 | E108: 523 | G108: BM8 | H108: -0.2662068966 | I108: 0 | J108: -0.195862069 | K108: -0.1875862069 | L108: -0.2786206897
A109: 929 | B109: 1014 | C109: 1332 | D109: 1168 | E109: 924 | G109: BM9 | H109: -0.08382642998 | I109: 0 | J109: 0.3136094675 | K109: 0.1518737673 | L109: -0.08875739645
A110: 414 | B110: 388 | C110: 155 | D110: 326 | E110: 174 | G110: BM10 | H110: 0.06701030928 | I110: 0 | J110: -0.6005154639 | K110: -0.1597938144 | L110: -0.5515463918
A111: 351
A112: 481 | B112: 316 | C112: 523 | D112: 488 | E112: 757 | G112: BM1 | H112: =(A112-$B112)/$B112 -> 0.5221518987 | I112: =(B112-$B112)/$B112 -> 0 | J112: =(C112-$B112)/$B112 -> 0.6550632911 | K112: =(D112-$B112)/$B112 -> 0.5443037975 | L112: =(E112-$B112)/$B112 -> 1.39556962
A113: 800 | B113: 300 | C113: 603 | D113: 586 | E113: 232 | G113: BM2 | H113: 1.666666667 | I113: =(B113-$B113)/$B113 -> 0 | J113: 1.01 | K113: 0.9533333333 | L113: -0.2266666667
A114: 290 | B114: 273 | C114: 245 | D114: 282 | E114: 448 | G114: BM3 | H114: 0.06227106227 | I114: 0 | J114: -0.1025641026 | K114: 0.03296703297 | L114: 0.641025641
G115: BM4
A116: 437 | B116: 550 | C116: 446 | D116: 471 | E116: 275 | G116: BM5 | H116: -0.2054545455 | I116: 0 | J116: -0.1890909091 | K116: -0.1436363636 | L116: -0.5
A117: 995 | B117: 897 | C117: 874 | D117: 900 | E117: 1069 | G117: BM6 | H117: 0.1092530658 | I117: 0 | J117: -0.02564102564 | K117: 0.003344481605 | L117: 0.1917502787
A118: 201 | B118: 36 | C118: 44 | D118: 174 | E118: 260 | G118: BM7 | H118: 4.583333333 | I118: 0 | J118: 0.2222222222 | K118: 3.833333333 | L118: 6.222222222
A119: 291 | B119: 126 | C119: 361 | D119: 285 | E119: 101 | G119: BM8 | H119: 1.30952381 | I119: 0 | J119: 1.865079365 | K119: 1.261904762 | L119: -0.1984126984
A120: 738 | B120: 1960 | C120: 1378 | D120: 1151 | E120: 1218 | G120: BM9 | H120: -0.6234693878 | I120: 0 | J120: -0.2969387755 | K120: -0.412755102 | L120: -0.3785714286
A121: 267 | B121: 43 | C121: 27 | D121: 164 | E121: 137 | G121: BM10 | H121: 5.209302326 | I121: 0 | J121: -0.3720930233 | K121: 2.813953488 | L121: 2.186046512
A122: 909
A123: 818 | B123: 215 | C123: 181 | D123: 264 | E123: 332 | G123: BM1 | H123: =(A123-$B123)/$B123 -> 2.804651163 | I123: =(B123-$B123)/$B123 -> 0 | J123: =(C123-$B123)/$B123 -> -0.1581395349 | K123: =(D123-$B123)/$B123 -> 0.2279069767 | L123: =(E123-$B123)/$B123 -> 0.5441860465
A124: 389 | B124: 994 | C124: 739 | D124: 1491 | E124: 1099 | G124: BM2 | H124: -0.6086519115 | I124: =(B124-$B124)/$B124 -> 0 | J124: -0.2565392354 | K124: 0.5 | L124: 0.1056338028
A125: 423 | B125: 70 | C125: 134 | D125: 198 | E125: 109 | G125: BM3 | H125: 5.042857143 | I125: 0 | J125: 0.9142857143 | K125: 1.828571429 | L125: 0.5571428571
G126: BM4
A127: 70 | B127: 118 | C127: 363 | D127: 35 | E127: 293 | G127: BM5 | H127: -0.406779661 | I127: 0 | J127: 2.076271186 | K127: -0.7033898305 | L127: 1.483050847
A128: 1014 | B128: 488 | C128: 398 | D128: 777 | E128: 678 | G128: BM6 | H128: 1.077868852 | I128: 0 | J128: -0.1844262295 | K128: 0.5922131148 | L128: 0.3893442623
A129: 496 | B129: 79 | C129: 61 | D129: 166 | E129: 58 | G129: BM7 | H129: 5.278481013 | I129: 0 | J129: -0.2278481013 | K129: 1.101265823 | L129: -0.2658227848
A130: 537 | B130: 1868 | C130: 1585 | D130: 1166 | E130: 1272 | G130: BM8 | H130: -0.7125267666 | I130: 0 | J130: -0.1514989293 | K130: -0.3758029979 | L130: -0.3190578158
A131: 530 | B131: 623 | C131: 963 | D131: 196 | E131: 577 | G131: BM9 | H131: -0.1492776886 | I131: 0 | J131: 0.5457463884 | K131: -0.6853932584 | L131: -0.07383627608
A132: 223 | B132: 46 | C132: 77 | D132: 208 | E132: 79 | G132: BM10 | H132: 3.847826087 | I132: 0 | J132: 0.6739130435 | K132: 3.52173913 | L132: 0.7173913043

Sheet Calculated DF-F
A1: BM1 | B1: OF | C1: SHAM | D1: T1 | E1: T2 | F1: T3 | G1: Total
A2: 59 | B2: ='Raw Data'!H2 -> -0.6804407713 | C2: ='Raw Data'!I2 -> 0 | D2: ='Raw Data'!J2 -> 0.1515151515 | E2: ='Raw Data'!K2 -> 0.2479338843 | F2: ='Raw Data'!L2 -> 0 | G2: =AVERAGE(D2:F2) -> 0.1331496786 | H2: M
A3: 61 | B3: ='Raw Data'!H13 -> -0.06426735219 | C3: ='Raw Data'!I13 -> 0 | D3: ='Raw Data'!J13 -> -0.1568123393 | E3: ='Raw Data'!K13 -> 0.09383033419 | F3: ='Raw Data'!L13 -> 0.03470437018 | G3: =AVERAGE(D3:F3) -> -0.00942587832 | H3: M
A4: 62 | B4: ='Raw Data'!H24 -> 0.1881188119 | C4: ='Raw Data'!I24 -> 0 | D4: ='Raw Data'!J24 -> 2.316831683 | E4: ='Raw Data'!K24 -> 2.663366337 | F4: ='Raw Data'!L24 -> 1.841584158 | G4: 2.273927393 | H4: M
A5: 63 | B5: ='Raw Data'!H35 -> 4.98989899 | C5: ='Raw Data'!I35 -> 0 | D5: ='Raw Data'!J35 -> 0.2727272727 | E5: ='Raw Data'!K35 -> 1.747474747 | F5: ='Raw Data'!L35 -> 1.535353535 | G5: 1.185185185 | H5: F
A6: 64 | B6: ='Raw Data'!H46 -> 0.3352601156 | C6: ='Raw Data'!I46 -> 0 | D6: ='Raw Data'!J46 -> 1.283236994 | E6: ='Raw Data'!K46 -> 1.809248555 | F6: ='Raw Data'!L46 -> 1.716763006 | G6: 1.603082852 | H6: F
A7: 162 | B7: ='Raw Data'!H57 -> 7.453416149 | C7: ='Raw Data'!I57 -> 0 | D7: ='Raw Data'!J57 -> 3.683229814 | E7: ='Raw Data'!K57 -> 0.2919254658 | F7: ='Raw Data'!L57 -> 0.1428571429 | G7: 1.372670807 | H7: F
A8: 212 | B8: ='Raw Data'!H68 -> 1.38547486 | C8: ='Raw Data'!I68 -> 0 | D8: ='Raw Data'!J68 -> 0.6033519553 | E8: ='Raw Data'!K68 -> 0.9553072626 | F8: ='Raw Data'!L68 -> 1.279329609 | G8: 0.9459962756 | H8: M
A9: 213 | B9: ='Raw Data'!H79 -> 0.2222222222 | C9: ='Raw Data'!I79 -> 0 | D9: ='Raw Data'!J79 -> -0.4141414141 | E9: ='Raw Data'!K79 -> 0.3434343434 | F9: ='Raw Data'!L79 -> 2.131313131 | G9: 0.6868686869 | H9: M
A10: 221 | B10: ='Raw Data'!H80 -> -0.05479452055 | C10: ='Raw Data'!I80 -> 0 | D10: ='Raw Data'!J80 -> 0.8943248532 | E10: ='Raw Data'!K80 -> 1.090019569 | F10: ='Raw Data'!L80 -> 0.698630137 | G10: 0.8943248532 | H10: M
A11: 294 | B11: ='Raw Data'!H81 -> 2.07751938 | C11: ='Raw Data'!I101 -> 0 | D11: ='Raw Data'!J101 -> 0.3379501385 | E11: ='Raw Data'!K101 -> 0.2188365651 | F11: ='Raw Data'!L101 -> 0.6980609418 | G11: 0.4182825485 | H11: F
A12: 351 | B12: ='Raw Data'!H112 -> 0.5221518987 | C12: ='Raw Data'!I112 -> 0 | D12: ='Raw Data'!J112 -> 0.6550632911 | E12: ='Raw Data'!K112 -> 0.5443037975 | F12: ='Raw Data'!L112 -> 1.39556962 | G12: 0.864978903 | H12: F
A13: 909 | B13: ='Raw Data'!H123 -> 2.804651163 | C13: ='Raw Data'!I123 -> 0 | D13: ='Raw Data'!J123 -> -0.1581395349 | E13: ='Raw Data'!K123 -> 0.2279069767 | F13: ='Raw Data'!L123 -> 0.5441860465 | G13: 0.2046511628 | H13: F
D14: =_xlfn.T.TEST($C2:$C13,D2:D13,2,1) -> 0.03983850083 | E14: =_xlfn.T.TEST($C2:$C13,E2:E13,2,1) -> 0.004270561639 | F14: =_xlfn.T.TEST($C2:$C13,F2:F13,2,1) -> 0.0006860005614
A15: BM2
A16: 59 | B16: ='Raw Data'!H3 -> 0.4675540765 | C16: ='Raw Data'!I3 -> 0 | D16: ='Raw Data'!J3 -> 0.1297836938 | E16: ='Raw Data'!K3 -> 0.2612312812 | F16: ='Raw Data'!L3 -> 0.4958402662 | G16: =AVERAGE(D16:F16) -> 0.2956184138 | H16: M
A17: 61 | B17: ='Raw Data'!H14 -> -0.264 | C17: ='Raw Data'!I14 -> 0 | D17: ='Raw Data'!J14 -> 0.124 | E17: ='Raw Data'!K14 -> -0.108 | F17: ='Raw Data'!L14 -> -0.38 | G17: =AVERAGE(D17:F17) -> -0.1213333333 | H17: M
A18: 62 | B18: ='Raw Data'!H25 -> -0.8429434377 | C18: ='Raw Data'!I25 -> 0 | D18: ='Raw Data'!J25 -> -0.46512905 | E18: ='Raw Data'!K25 -> -0.5425590335 | F18: ='Raw Data'!L25 -> -0.647446458 | G18: -0.5517115138 | H18: M
A19: 63 | B19: ='Raw Data'!H36 -> 4.5 | C19: ='Raw Data'!I36 -> 0 | D19: ='Raw Data'!J36 -> 30.65 | E19: ='Raw Data'!K36 -> 16.7 | F19: ='Raw Data'!L36 -> 29.8 | G19: 25.71666667 | H19: F
A20: 64 | B20: ='Raw Data'!H47 -> 3.091743119 | C20: ='Raw Data'!I47 -> 0 | D20: ='Raw Data'!J47 -> 1.467889908 | E20: ='Raw Data'!K47 -> 0.752293578 | F20: ='Raw Data'!L47 -> 1.211009174 | G20: 1.143730887 | H20: F
A21: 162 | B21: ='Raw Data'!H58 -> 9.777777778 | C21: ='Raw Data'!I58 -> 0 | D21: ='Raw Data'!J58 -> 30.22222222 | E21: ='Raw Data'!K58 -> 28.88888889 | F21: ='Raw Data'!L58 -> 40 | G21: 33.03703704 | H21: F
A22: 212 | B22: ='Raw Data'!H69 -> 28.33333333 | C22: ='Raw Data'!I69 -> 0 | D22: ='Raw Data'!J69 -> 4.933333333 | E22: ='Raw Data'!K69 -> 4.4 | F22: ='Raw Data'!L69 -> 5.266666667 | G22: 4.866666667 | H22: M
A23: 213 | B23: ='Raw Data'!H80 -> -0.05479452055 | C23: ='Raw Data'!I80 -> 0 | D23: ='Raw Data'!J80 -> 0.8943248532 | E23: ='Raw Data'!K80 -> 1.090019569 | F23: ='Raw Data'!L80 -> 0.698630137 | G23: 0.8943248532 | H23: M
A24: 221 | B24: ='Raw Data'!H91 -> 0.1515625 | C24: ='Raw Data'!I91 -> 0 | D24: ='Raw Data'!J91 -> -0.071875 | E24: ='Raw Data'!K91 -> -0.4875 | F24: ='Raw Data'!L91 -> -0.18125 | G24: -0.246875 | H24: M
A25: 294 | B25: ='Raw Data'!H103 -> 0.006211180124 | C25: ='Raw Data'!I103 -> 0 | D25: ='Raw Data'!J103 -> 0.003105590062 | E25: ='Raw Data'!K103 -> -0.0900621118 | F25: ='Raw Data'!L103 -> 0.6211180124 | G25: ='Raw Data'!M103 -> 0 | H25: F
A26: 351 | B26: ='Raw Data'!H113 -> 1.666666667 | C26: ='Raw Data'!I113 -> 0 | D26: ='Raw Data'!J113 -> 1.01 | E26: ='Raw Data'!K113 -> 0.9533333333 | F26: ='Raw Data'!L113 -> -0.2266666667 | G26: 0.5788888889 | H26: F
A27: 909 | B27: ='Raw Data'!H124 -> -0.6086519115 | C27: ='Raw Data'!I124 -> 0 | D27: ='Raw Data'!J124 -> -0.2565392354 | E27: ='Raw Data'!K124 -> 0.5 | F27: ='Raw Data'!L124 -> 0.1056338028 | G27: 0.1163648558 | H27: F
D28: =_xlfn.T.TEST($C16:$C27,D16:D27,2,1) -> 0.1165778698 | E28: =_xlfn.T.TEST($C16:$C27,E16:E27,2,1) -> 0.1247003559 | F28: =_xlfn.T.TEST($C16:$C27,F16:F27,2,1) -> 0.1309425022
A29: BM3
A30: 59 | B30: ='Raw Data'!H4 -> 0.8421052632 | C30: ='Raw Data'!I4 -> 0 | D30: ='Raw Data'!J4 -> 1.040935673 | E30: ='Raw Data'!K4 -> 0.9532163743 | F30: ='Raw Data'!L4 -> 0.8479532164 | G30: =AVERAGE(D30:F30) -> 0.9473684211
A31: 61 | B31: ='Raw Data'!H15 -> 0.6074380165 | C31: ='Raw Data'!I15 -> 0 | D31: ='Raw Data'!J15 -> 0.9380165289 | E31: ='Raw Data'!K15 -> 1.314049587 | F31: ='Raw Data'!L15 -> 1.739669421 | G31: =AVERAGE(D31:F31) -> 1.330578512
A32: 62 | B32: ='Raw Data'!H26 -> -0.5989847716 | C32: ='Raw Data'!I26 -> 0 | D32: ='Raw Data'!J26 -> -0.3959390863 | E32: ='Raw Data'!K26 -> 0.3984771574 | F32: ='Raw Data'!L26 -> 0.1192893401 | G32: 0.04060913706
A33: 63 | B33: ='Raw Data'!H37 -> 3.078014184 | C33: ='Raw Data'!I37 -> 0 | D33: ='Raw Data'!J37 -> -0.4113475177 | E33: ='Raw Data'!K37 -> 2.460992908 | F33: ='Raw Data'!L37 -> 1.475177305 | G33: 1.174940898
A34: 64 | B34: ='Raw Data'!H48 -> 2.253012048 | C34: ='Raw Data'!I48 -> 0 | D34: ='Raw Data'!J48 -> 0.421686747 | E34: ='Raw Data'!K48 -> 3.855421687 | F34: ='Raw Data'!L48 -> 2.43373494 | G34: 2.236947791
A35: 162 | B35: ='Raw Data'!H59 -> 64.44444444 | C35: ='Raw Data'!I59 -> 0 | D35: ='Raw Data'!J59 -> 22.77777778 | E35: ='Raw Data'!K59 -> 2.444444444 | F35: ='Raw Data'!L59 -> 7.888888889 | G35: 11.03703704
A36: 212 | B36: ='Raw Data'!H70 -> 1.155 | C36: ='Raw Data'!I70 -> 0 | D36: ='Raw Data'!J70 -> -0.045 | E36: ='Raw Data'!K70 -> 2.465 | F36: ='Raw Data'!L70 -> 1.295 | G36: 1.238333333
A37: 213 | B37: ='Raw Data'!H81 -> 2.07751938 | C37: ='Raw Data'!I81 -> 0 | D37: ='Raw Data'!J81 -> -0.8682170543 | E37: ='Raw Data'!K81 -> 1 | F37: ='Raw Data'!L81 -> 0.8139534884 | G37: 0.315245478
A38: 221 | B38: ='Raw Data'!H92 -> -0.2727272727 | C38: ='Raw Data'!I92 -> 0 | D38: ='Raw Data'!J92 -> 0.5887445887 | E38: ='Raw Data'!K92 -> 0.8268398268 | F38: ='Raw Data'!L92 -> 0.8354978355 | G38: 0.7503607504
A39: 294 | B39: ='Raw Data'!H103 -> 0.006211180124 | C39: ='Raw Data'!I103 -> 0 | D39: ='Raw Data'!J103 -> 0.003105590062 | E39: ='Raw Data'!K103 -> -0.0900621118 | F39: ='Raw Data'!L103 -> 0.6211180124 | G39: 0.1780538302
A40: 351 | B40: ='Raw Data'!H114 -> 0.06227106227 | C40: ='Raw Data'!I114 -> 0 | D40: ='Raw Data'!J114 -> -0.1025641026 | E40: ='Raw Data'!K114 -> 0.03296703297 | F40: ='Raw Data'!L114 -> 0.641025641 | G40: 0.1904761905
A41: 909 | B41: ='Raw Data'!H125 -> 5.042857143 | C41: ='Raw Data'!I125 -> 0 | D41: ='Raw Data'!J125 -> 0.9142857143 | E41: ='Raw Data'!K125 -> 1.828571429 | F41: ='Raw Data'!L125 -> 0.5571428571 | G41: 1.1
D42: =_xlfn.T.TEST($C30:$C41,D30:D41,2,1) -> 0.2965226606 | E42: =_xlfn.T.TEST($C30:$C41,E30:E41,2,1) -> 0.001299998241 | F42: =_xlfn.T.TEST($C30:$C41,F30:F41,2,1) -> 0.02131564856
A43: BM4
A44: 59
A45: 61
A46: 62
A47: 63
A48: 64
A49: 162
A50: 212
A51: 213
A52: 221
A53: 294
A54: 351
A55: 909
D56: =_xlfn.T.TEST($C44:$C55,D44:D55,2,1) ->  | E56: =_xlfn.T.TEST($C44:$C55,E44:E55,2,1) ->  | F56: =_xlfn.T.TEST($C44:$C55,F44:F55,2,1) -> 
A57: BM5
A58: 59 | B58: ='Raw Data'!H6 -> -0.0387409201 | C58: ='Raw Data'!I6 -> 0 | D58: ='Raw Data'!J6 -> -0.03631961259 | E58: ='Raw Data'!K6 -> -0.200968523 | F58: ='Raw Data'!L6 -> -0.4213075061 | G58: =AVERAGE(D58:F58) -> -0.2195318805
A59: 61 | B59: ='Raw Data'!H17 -> 0.5449591281 | C59: ='Raw Data'!I17 -> 0 | D59: ='Raw Data'!J17 -> 0.2588555858 | E59: ='Raw Data'!K17 -> -0.2479564033 | F59: ='Raw Data'!L17 -> -0.6267029973 | G59: =AVERAGE(D59:F59) -> -0.2052679382
A60: 62 | B60: ='Raw Data'!H28 -> 5.064846416 | C60: ='Raw Data'!I28 -> 0 | D60: ='Raw Data'!J28 -> 1.167235495 | E60: ='Raw Data'!K28 -> 1.423208191 | F60: ='Raw Data'!L28 -> 1.423208191 | G60: 1.337883959
A61: 63 | B61: ='Raw Data'!H39 -> 0.9060402685 | C61: ='Raw Data'!I39 -> 0 | D61: ='Raw Data'!J39 -> 0.2147651007 | E61: ='Raw Data'!K39 -> 0.9194630872 | F61: ='Raw Data'!L39 -> 0.1006711409 | G61: 0.4116331096
A62: 64 | B62: ='Raw Data'!H50 -> 0.2957264957 | C62: ='Raw Data'!I50 -> 0 | D62: ='Raw Data'!J50 -> 0.4871794872 | E62: ='Raw Data'!K50 -> 0.1213675214 | F62: ='Raw Data'!L50 -> -0.0735042735 | G62: 0.1783475783
A63: 162 | B63: ='Raw Data'!H61 -> 0.1990521327 | C63: ='Raw Data'!I61 -> 0 | D63: ='Raw Data'!J61 -> 3.421800948 | E63: ='Raw Data'!K61 -> 2.587677725 | F63: ='Raw Data'!L61 -> 2.957345972 | G63: ='Raw Data'!M61 -> 0
A64: 212 | B64: ='Raw Data'!H72 -> -0.6081081081 | C64: ='Raw Data'!I72 -> 0 | D64: ='Raw Data'!J72 -> -0.1428571429 | E64: ='Raw Data'!K72 -> -0.2992277992 | F64: ='Raw Data'!L72 -> -0.003861003861 | G64: -0.1486486486
A65: 213 | B65: ='Raw Data'!H83 -> -0.6355475763 | C65: ='Raw Data'!I83 -> 0 | D65: ='Raw Data'!J83 -> -0.02692998205 | E65: ='Raw Data'!K83 -> -0.5385996409 | F65: ='Raw Data'!L83 -> -0.6104129264 | G65: -0.3919808498
A66: 221 | B66: ='Raw Data'!H94 -> -0.2964509395 | C66: ='Raw Data'!I94 -> 0 | D66: ='Raw Data'!J94 -> 0.002087682672 | E66: ='Raw Data'!K94 -> -0.07306889353 | F66: ='Raw Data'!L94 -> -0.01461377871 | G66: -0.02853166319
A67: 294 | B67: ='Raw Data'!H105 -> -0.3 | C67: ='Raw Data'!I105 -> 0 | D67: ='Raw Data'!J105 -> 0.01451612903 | E67: ='Raw Data'!K105 -> -0.2209677419 | F67: ='Raw Data'!L105 -> -0.1483870968 | G67: -0.1182795699
A68: 351 | B68: ='Raw Data'!H116 -> -0.2054545455 | C68: ='Raw Data'!I116 -> 0 | D68: ='Raw Data'!J116 -> -0.1890909091 | E68: ='Raw Data'!K116 -> -0.1436363636 | F68: ='Raw Data'!L116 -> -0.5 | G68: -0.2775757576
A69: 909 | B69: ='Raw Data'!H127 -> -0.406779661 | C69: ='Raw Data'!I127 -> 0 | D69: ='Raw Data'!J127 -> 2.076271186 | E69: ='Raw Data'!K127 -> -0.7033898305 | F69: ='Raw Data'!L127 -> 1.483050847 | G69: 0.9519774011
D70: =_xlfn.T.TEST($C58:$C69,D58:D69,2,1) -> 0.08471962536 | E70: =_xlfn.T.TEST($C58:$C69,E58:E69,2,1) -> 0.4450542696 | F70: =_xlfn.T.TEST($C58:$C69,F58:F69,2,1) -> 0.3665897771
A71: BM6
A72: 59 | B72: ='Raw Data'!H7 -> 0.004451038576 | C72: ='Raw Data'!I7 -> 0 | D72: ='Raw Data'!J7 -> 0.08456973294 | E72: ='Raw Data'!K7 -> 0.2878338279 | F72: ='Raw Data'!L7 -> 0.1988130564 | G72: =AVERAGE(D72:F72) -> 0.1904055391
A73: 61 | B73: ='Raw Data'!H18 -> -0.1360946746 | C73: ='Raw Data'!I18 -> 0 | D73: ='Raw Data'!J18 -> -0.2455621302 | E73: ='Raw Data'!K18 -> -0.3210059172 | F73: ='Raw Data'!L18 -> -0.2825443787 | G73: =AVERAGE(D73:F73) -> -0.2830374753
A74: 62 | B74: ='Raw Data'!H29 -> 1.412935323 | C74: ='Raw Data'!I29 -> 0 | D74: ='Raw Data'!J29 -> 0.776119403 | E74: ='Raw Data'!K29 -> 1.024875622 | F74: ='Raw Data'!L29 -> 1.437810945 | G74: 1.07960199
A75: 63 | B75: ='Raw Data'!H40 -> 1.067873303 | C75: ='Raw Data'!I40 -> 0 | D75: ='Raw Data'!J40 -> 1.038461538 | E75: ='Raw Data'!K40 -> 0.5339366516 | F75: ='Raw Data'!L40 -> 0.8235294118 | G75: 0.7986425339
A76: 64 | B76: ='Raw Data'!H51 -> 0.5611510791 | C76: ='Raw Data'!I51 -> 0 | D76: ='Raw Data'!J51 -> 0.1438848921 | E76: ='Raw Data'!K51 -> 0.8057553957 | F76: ='Raw Data'!L51 -> 0.6258992806 | G76: 0.5251798561
A77: 162 | B77: ='Raw Data'!H62 -> -0.2345177665 | C77: ='Raw Data'!I62 -> 0 | D77: ='Raw Data'!J62 -> -0.5401015228 | E77: ='Raw Data'!K62 -> -0.3096446701 | F77: ='Raw Data'!L62 -> -0.3847715736 | G77: -0.4115059222
A78: 212 | B78: ='Raw Data'!H73 -> 0.02626641651 | C78: ='Raw Data'!I73 -> 0 | D78: ='Raw Data'!J73 -> 0.2270168856 | E78: ='Raw Data'!K73 -> 0.3977485929 | F78: ='Raw Data'!L73 -> 0.1219512195 | G78: 0.248905566
A79: 213 | B79: ='Raw Data'!H84 -> -0.02182539683 | C79: ='Raw Data'!I84 -> 0 | D79: ='Raw Data'!J84 -> -0.371031746 | E79: ='Raw Data'!K84 -> 0.5138888889 | F79: ='Raw Data'!L84 -> 0.2420634921 | G79: 0.1283068783
A80: 221 | B80: ='Raw Data'!H95 -> 0.00275862069 | C80: ='Raw Data'!I95 -> 0 | D80: ='Raw Data'!J95 -> 0.4620689655 | E80: ='Raw Data'!K95 -> -0.01103448276 | F80: ='Raw Data'!L95 -> 0.28 | G80: 0.2436781609
A81: 294 | B81: ='Raw Data'!H106 -> 0.5839636914 | C81: ='Raw Data'!I106 -> 0 | D81: ='Raw Data'!J106 -> 0.1921331316 | E81: ='Raw Data'!K106 -> 0.2813918306 | F81: ='Raw Data'!L106 -> 0.2360060514 | G81: 0.2365103379
A82: 351 | B82: ='Raw Data'!H117 -> 0.1092530658 | C82: ='Raw Data'!I117 -> 0 | D82: ='Raw Data'!J117 -> -0.02564102564 | E82: ='Raw Data'!K117 -> 0.003344481605 | F82: ='Raw Data'!L117 -> 0.1917502787 | G82: 0.05648457822
A83: 909 | B83: ='Raw Data'!H128 -> 1.077868852 | C83: ='Raw Data'!I128 -> 0 | D83: ='Raw Data'!J128 -> -0.1844262295 | E83: ='Raw Data'!K128 -> 0.5922131148 | F83: ='Raw Data'!L128 -> 0.3893442623 | G83: 0.2657103825
D84: =_xlfn.T.TEST($C72:$C83,D72:D83,2,1) -> 0.3498855815 | E84: =_xlfn.T.TEST($C72:$C83,E72:E83,2,1) -> 0.02349137311 | F84: =_xlfn.T.TEST($C72:$C83,F72:F83,2,1) -> 0.04001118333
A85: BM7
A86: 59 | B86: ='Raw Data'!H8 -> 0.9831932773 | C86: ='Raw Data'!I8 -> 0 | D86: ='Raw Data'!J8 -> 1.117647059 | E86: ='Raw Data'!K8 -> 0.09243697479 | F86: ='Raw Data'!L8 -> 0.5966386555 | G86: =AVERAGE(D86:F86) -> 0.6022408964
A87: 61 | B87: ='Raw Data'!H19 -> 0.3611111111 | C87: ='Raw Data'!I19 -> 0 | D87: ='Raw Data'!J19 -> 0.6458333333 | E87: ='Raw Data'!K19 -> 0.8715277778 | F87: ='Raw Data'!L19 -> 1.090277778 | G87: =AVERAGE(D87:F87) -> 0.869212963
A88: 62 | B88: ='Raw Data'!H30 -> 1.7125 | C88: ='Raw Data'!I30 -> 0 | D88: ='Raw Data'!J30 -> 1.525 | E88: ='Raw Data'!K30 -> 2.2375 | F88: ='Raw Data'!L30 -> 0.4125 | G88: 1.391666667
A89: 63 | B89: ='Raw Data'!H41 -> 19.66666667 | C89: ='Raw Data'!I41 -> 0 | D89: ='Raw Data'!J41 -> 2.888888889 | E89: ='Raw Data'!K41 -> 35.55555556 | F89: ='Raw Data'!L41 -> 11.77777778 | G89: 16.74074074
A90: 64 | B90: ='Raw Data'!H52 -> 9.909090909 | C90: ='Raw Data'!I52 -> 0 | D90: ='Raw Data'!J52 -> 1 | E90: ='Raw Data'!K52 -> 3.909090909 | F90: ='Raw Data'!L52 -> 7.666666667 | G90: 4.191919192
A91: 162
A92: 212 | B92: ='Raw Data'!H74 -> 0.693877551 | C92: ='Raw Data'!I74 -> 0 | D92: ='Raw Data'!J74 -> -0.7857142857 | E92: ='Raw Data'!K74 -> 0.6326530612 | F92: ='Raw Data'!L74 -> -0.2040816327 | G92: -0.119047619
A93: 213 | B93: ='Raw Data'!H85 -> 2.084615385 | C93: ='Raw Data'!I85 -> 0 | D93: ='Raw Data'!J85 -> -1 | E93: ='Raw Data'!K85 -> -0.5384615385 | F93: ='Raw Data'!L85 -> -0.2461538462 | G93: -0.5948717949
A94: 221 | B94: ='Raw Data'!H96 -> 0.05607476636 | C94: ='Raw Data'!I96 -> 0 | D94: ='Raw Data'!J96 -> -0.2429906542 | E94: ='Raw Data'!K96 -> 1.121495327 | F94: ='Raw Data'!L96 -> 0.1682242991 | G94: 0.3489096573
A95: 294 | B95: ='Raw Data'!H107 -> -0.1829268293 | C95: ='Raw Data'!I107 -> 0 | D95: ='Raw Data'!J107 -> -0.4926829268 | E95: ='Raw Data'!K107 -> -0.1341463415 | F95: ='Raw Data'!L107 -> -0.03414634146 | G95: -0.2203252033
A96: 351 | B96: ='Raw Data'!H118 -> 4.583333333 | C96: ='Raw Data'!I118 -> 0 | D96: ='Raw Data'!J118 -> 0.2222222222 | E96: ='Raw Data'!K118 -> 3.833333333 | F96: ='Raw Data'!L118 -> 6.222222222 | G96: 3.425925926
A97: 909 | B97: ='Raw Data'!H129 -> 5.278481013 | C97: ='Raw Data'!I129 -> 0 | D97: ='Raw Data'!J129 -> -0.2278481013 | E97: ='Raw Data'!K129 -> 1.101265823 | F97: ='Raw Data'!L129 -> -0.2658227848 | G97: 0.2025316456
D98: =_xlfn.T.TEST($C86:$C97,D86:D97,2,1) -> 0.2535093735 | E98: =_xlfn.T.TEST($C86:$C97,E86:E97,2,1) -> 0.189617059 | F98: =_xlfn.T.TEST($C86:$C97,F86:F97,2,1) -> 0.07557266427
A99: BM8
A100: 59 | B100: ='Raw Data'!H9 -> 0.01741105223 | C100: ='Raw Data'!I9 -> 0 | D100: ='Raw Data'!J9 -> -0.1370174111 | E100: ='Raw Data'!K9 -> -0.2445117335 | F100: ='Raw Data'!L9 -> -0.1763815291 | G100: =AVERAGE(D100:F100) -> -0.1859702246
A101: 61 | B101: ='Raw Data'!H20 -> 1.025839793 | C101: ='Raw Data'!I20 -> 0 | D101: ='Raw Data'!J20 -> 0.6201550388 | E101: ='Raw Data'!K20 -> -0.03359173127 | F101: ='Raw Data'!L20 -> -0.180878553 | G101: =AVERAGE(D101:F101) -> 0.1352282515
A102: 62 | B102: ='Raw Data'!H31 -> -0.3068651778 | C102: ='Raw Data'!I31 -> 0 | D102: ='Raw Data'!J31 -> -0.04797353184 | E102: ='Raw Data'!K31 -> -0.2456575682 | F102: ='Raw Data'!L31 -> 0.01819685691 | G102: -0.09181141439
A103: 63 | B103: ='Raw Data'!H42 -> -0.4903782349 | C103: ='Raw Data'!I42 -> 0 | D103: ='Raw Data'!J42 -> 0.101526211 | E103: ='Raw Data'!K42 -> -0.4751161248 | F103: ='Raw Data'!L42 -> -0.200398142 | G103: -0.1913293519
A104: 64 | B104: ='Raw Data'!H53 -> -0.4255319149 | C104: ='Raw Data'!I53 -> 0 | D104: ='Raw Data'!J53 -> -0.1428571429 | E104: ='Raw Data'!K53 -> -0.3510638298 | F104: ='Raw Data'!L53 -> -0.2112462006 | G104: -0.2350557244
A105: 162 | B105: ='Raw Data'!H64 -> -0.5395683453 | C105: ='Raw Data'!I64 -> 0 | D105: ='Raw Data'!J64 -> -0.4016786571 | E105: ='Raw Data'!K64 -> 0.8405275779 | F105: ='Raw Data'!L64 -> 0.6738609113 | G105: 0.3709032774
A106: 212 | B106: ='Raw Data'!H75 -> 0.1240458015 | C106: ='Raw Data'!I75 -> 0 | D106: ='Raw Data'!J75 -> 0.2423664122 | E106: ='Raw Data'!K75 -> -0.2709923664 | F106: ='Raw Data'!L75 -> -0.1622137405 | G106: -0.06361323155
A107: 213 | B107: ='Raw Data'!H86 -> -0.2540603248 | C107: ='Raw Data'!I86 -> 0 | D107: ='Raw Data'!J86 -> -0.475638051 | E107: ='Raw Data'!K86 -> -0.5742459397 | F107: ='Raw Data'!L86 -> -0.4988399072 | G107: -0.5162412993
A108: 221 | B108: ='Raw Data'!H97 -> 0.0182767624 | C108: ='Raw Data'!I97 -> 0 | D108: ='Raw Data'!J97 -> -0.5339425587 | E108: ='Raw Data'!K97 -> -0.2349869452 | F108: ='Raw Data'!L97 -> -0.3133159269 | G108: -0.3607484769
A109: 294 | B109: ='Raw Data'!H108 -> -0.2662068966 | C109: ='Raw Data'!I108 -> 0 | D109: ='Raw Data'!J108 -> -0.195862069 | E109: ='Raw Data'!K108 -> -0.1875862069 | F109: ='Raw Data'!L108 -> -0.2786206897 | G109: -0.2206896552
A110: 351 | B110: ='Raw Data'!H119 -> 1.30952381 | C110: ='Raw Data'!I119 -> 0 | D110: ='Raw Data'!J119 -> 1.865079365 | E110: ='Raw Data'!K119 -> 1.261904762 | F110: ='Raw Data'!L119 -> -0.1984126984 | G110: 0.9761904762
A111: 909 | B111: ='Raw Data'!H130 -> -0.7125267666 | C111: ='Raw Data'!I130 -> 0 | D111: ='Raw Data'!J130 -> -0.1514989293 | E111: ='Raw Data'!K130 -> -0.3758029979 | F111: ='Raw Data'!L130 -> -0.3190578158 | G111: -0.2821199143
D112: =_xlfn.T.TEST($C100:$C111,D100:D111,2,1) -> 0.748095749 | E112: =_xlfn.T.TEST($C100:$C111,E100:E111,2,1) -> 0.6496157737 | F112: =_xlfn.T.TEST($C100:$C111,F100:F111,2,1) -> 0.09083559967
A113: BM9
A114: 59 | B114: ='Raw Data'!H10 -> -0.8508474576 | C114: ='Raw Data'!I10 -> 0 | D114: ='Raw Data'!J10 -> -0.4322033898 | E114: ='Raw Data'!K10 -> -0.5203389831 | F114: ='Raw Data'!L10 -> -0.4457627119 | G114: =AVERAGE(D114:F114) -> -0.4661016949
A115: 61 | B115: ='Raw Data'!H21 -> -0.5611428571 | C115: ='Raw Data'!I21 -> 0 | D115: ='Raw Data'!J21 -> -0.4514285714 | E115: ='Raw Data'!K21 -> -0.4297142857 | F115: ='Raw Data'!L21 -> -0.4788571429 | G115: =AVERAGE(D115:F115) -> -0.4533333333
A116: 62 | B116: ='Raw Data'!H32 -> -0.557591623 | C116: ='Raw Data'!I32 -> 0 | D116: ='Raw Data'!J32 -> 0.3691099476 | E116: ='Raw Data'!K32 -> -0.2251308901 | F116: ='Raw Data'!L32 -> -0.1204188482 | G116: 0.007853403141
A117: 63 | B117: ='Raw Data'!H43 -> -0.6263478669 | C117: ='Raw Data'!I43 -> 0 | D117: ='Raw Data'!J43 -> -0.5977496484 | E117: ='Raw Data'!K43 -> -0.4664791374 | F117: ='Raw Data'!L43 -> -0.5710267229 | G117: -0.5450851696
A118: 64 | B118: ='Raw Data'!H54 -> -0.5955387205 | C118: ='Raw Data'!I54 -> 0 | D118: ='Raw Data'!J54 -> -0.3278619529 | E118: ='Raw Data'!K54 -> -0.4726430976 | F118: ='Raw Data'!L54 -> -0.4532828283 | G118: -0.4179292929
A119: 162 | B119: ='Raw Data'!H65 -> -0.7730434783 | C119: ='Raw Data'!I65 -> 0 | D119: ='Raw Data'!J65 -> -0.8234782609 | E119: ='Raw Data'!K65 -> -0.5739130435 | F119: ='Raw Data'!L65 -> -0.5630434783 | G119: -0.6534782609
A120: 212
A121: 213 | B121: ='Raw Data'!H87 -> -0.5428954424 | C121: ='Raw Data'!I87 -> 0 | D121: ='Raw Data'!J87 -> 0.4001340483 | E121: ='Raw Data'!K87 -> -0.02412868633 | F121: ='Raw Data'!L87 -> -0.08847184987 | G121: 0.09584450402
A122: 221 | B122: ='Raw Data'!H98 -> -0.3008595989 | C122: ='Raw Data'!I98 -> 0 | D122: ='Raw Data'!J98 -> 0.223495702 | E122: ='Raw Data'!K98 -> -0.3982808023 | F122: ='Raw Data'!L98 -> -0.2593123209 | G122: -0.1446991404
A123: 294 | B123: ='Raw Data'!H109 -> -0.08382642998 | C123: ='Raw Data'!I109 -> 0 | D123: ='Raw Data'!J109 -> 0.3136094675 | E123: ='Raw Data'!K109 -> 0.1518737673 | F123: ='Raw Data'!L109 -> -0.08875739645 | G123: 0.1255752794
A124: 351 | B124: ='Raw Data'!H120 -> -0.6234693878 | C124: ='Raw Data'!I120 -> 0 | D124: ='Raw Data'!J120 -> -0.2969387755 | E124: ='Raw Data'!K120 -> -0.412755102 | F124: ='Raw Data'!L120 -> -0.3785714286 | G124: -0.362755102
A125: 909 | B125: ='Raw Data'!H131 -> -0.1492776886 | C125: ='Raw Data'!I131 -> 0 | D125: ='Raw Data'!J131 -> 0.5457463884 | E125: ='Raw Data'!K131 -> -0.6853932584 | F125: ='Raw Data'!L131 -> -0.07383627608 | G125: -0.07116104869
D126: =_xlfn.T.TEST($C114:$C125,D114:D125,2,1) -> 0.5097329498 | E126: =_xlfn.T.TEST($C114:$C125,E114:E125,2,1) -> 0.0005511913629 | F126: =_xlfn.T.TEST($C114:$C125,F114:F125,2,1) -> 0.0003289070415
A127: BM10
A128: 59 | B128: ='Raw Data'!H11 -> 0.7871485944 | C128: ='Raw Data'!I11 -> 0 | D128: ='Raw Data'!J11 -> -0.2008032129 | E128: ='Raw Data'!K11 -> 0.3935742972 | F128: ='Raw Data'!L11 -> 0.07228915663 | G128: =AVERAGE(D128:F128) -> 0.08835341365
A129: 61 | B129: ='Raw Data'!H22 -> -0.2164948454 | C129: ='Raw Data'!I22 -> 0 | D129: ='Raw Data'!J22 -> -0.3273195876 | E129: ='Raw Data'!K22 -> 0.2809278351 | F129: ='Raw Data'!L22 -> 0.8608247423 | G129: =AVERAGE(D129:F129) -> 0.2714776632
A130: 62 | B130: ='Raw Data'!H33 -> 21.5 | C130: ='Raw Data'!I33 -> 0 | D130: ='Raw Data'!J33 -> 3.3 | E130: ='Raw Data'!K33 -> 7.15 | F130: ='Raw Data'!L33 -> 11.35 | G130: 7.266666667
A131: 63 | B131: ='Raw Data'!H44 -> 29.33333333 | C131: ='Raw Data'!I44 -> 0 | D131: ='Raw Data'!J44 -> 1.666666667 | E131: ='Raw Data'!K44 -> 17.33333333 | F131: ='Raw Data'!L44 -> 7.444444444 | G131: 8.814814815
A132: 64 | B132: ='Raw Data'!H55 -> 5.641791045 | C132: ='Raw Data'!I55 -> 0 | D132: ='Raw Data'!J55 -> 1.164179104 | E132: ='Raw Data'!K55 -> 1.537313433 | F132: ='Raw Data'!L55 -> 1.641791045 | G132: 1.447761194
A133: 162
A134: 212 | B134: ='Raw Data'!H77 -> 8.230769231 | C134: ='Raw Data'!I77 -> 0 | D134: ='Raw Data'!J77 -> -0.1153846154 | E134: ='Raw Data'!K77 -> 0.07692307692 | F134: ='Raw Data'!L77 -> 0.8846153846 | G134: 0.2820512821
A135: 213 | B135: ='Raw Data'!H88 -> 7.101694915 | C135: ='Raw Data'!I88 -> 0 | D135: ='Raw Data'!J88 -> -1 | E135: ='Raw Data'!K88 -> -0.9237288136 | F135: ='Raw Data'!L88 -> -0.6440677966 | G135: -0.8559322034
A136: 221 | B136: ='Raw Data'!H99 -> 1.390977444 | C136: ='Raw Data'!I99 -> 0 | D136: ='Raw Data'!J99 -> -0.5601503759 | E136: ='Raw Data'!K99 -> 0.8834586466 | F136: ='Raw Data'!L99 -> -0.1729323308 | G136: 0.05012531328
A137: 294 | B137: ='Raw Data'!H110 -> 0.06701030928 | C137: ='Raw Data'!I110 -> 0 | D137: ='Raw Data'!J110 -> -0.6005154639 | E137: ='Raw Data'!K110 -> -0.1597938144 | F137: ='Raw Data'!L110 -> -0.5515463918 | G137: -0.4372852234
A138: 351 | B138: ='Raw Data'!H121 -> 5.209302326 | C138: ='Raw Data'!I121 -> 0 | D138: ='Raw Data'!J121 -> -0.3720930233 | E138: ='Raw Data'!K121 -> 2.813953488 | F138: ='Raw Data'!L121 -> 2.186046512 | G138: 1.542635659
A139: 909 | B139: ='Raw Data'!H132 -> 3.847826087 | C139: ='Raw Data'!I132 -> 0 | D139: ='Raw Data'!J132 -> 0.6739130435 | E139: ='Raw Data'!K132 -> 3.52173913 | F139: ='Raw Data'!L132 -> 0.7173913043 | G139: 1.637681159
D140: =_xlfn.T.TEST($C128:$C139,D128:D139,2,1) -> 0.4109194851 | E140: =_xlfn.T.TEST($C128:$C139,E128:E139,2,1) -> 0.08910805987 | F140: =_xlfn.T.TEST($C128:$C139,F128:F139,2,1) -> 0.08714801443
